bitfinex-derivatives/quotes_BTCF0:USTF0_20210111
["timestamp","ask_amount","ask_price","bid_price","bid_amount"]
[1610336714190,4.5676,34423.0,34421.0,0.13632608]
[1610336714591,4.5676,34423.0,34381.0,0.08617]
[1610336714791,0.41115,34422.0,34381.0,0.08617]
[1610336715090,0.2951,34422.0,34381.0,0.08617]
[1610336716090,0.2951,34422.0,34376.0,1.0]
[1610336716892,0.2951,34422.0,34374.0,0.07466]
[1610336718194,0.2951,34422.0,34421.0,0.13632608]
[1610336718793,0.2951,34422.0,34421.0,1.13632608]
[1610336720197,0.2951,34422.0,34421.0,1.24159608]
[1610336720797,0.2951,34422.0,34421.0,0.24159608]
[1610336720997,0.05545,34529.0,34421.0,0.24159608]
[1610336721195,2.51804233,34536.0,34421.0,0.24159608]
[1610336721396,1.0,34541.0,34421.0,0.24159608]
[1610336722197,1.0,34541.0,34509.0,0.13632608]
[1610336722797,3.5218358,34581.0,34509.0,0.13632608]
[1610336722996,1.0,34581.0,34499.0,0.0707]
[1610336723196,0.38072,34562.0,34499.0,0.0707]
[1610336723797,0.38072,34562.0,34443.0,1.0]
[1610336724196,0.13632608,34513.0,34499.0,0.13632608]
[1610336724397,0.21451608,34513.0,34499.0,0.13632608]
[1610336724797,0.07819,34513.0,34499.0,0.13632608]
[1610336725599,0.07819,34513.0,34458.0,1.0]
[1610336726202,0.07819,34513.0,34512.0,0.13632608]
[1610336726401,0.07819,34513.0,34472.0,0.10236]
[1610336726601,0.01749,34513.0,34472.0,0.10236]
[1610336726801,0.01749,34513.0,34473.0,0.087]
[1610336727002,9e-05,34513.0,34473.0,0.087]
[1610336727502,9e-05,34513.0,34474.0,0.0872]
[1610336727902,9e-05,34513.0,34481.0,4.0442]
[1610336728101,0.38072,34562.0,34481.0,4.0442]
[1610336728102,0.38072,34562.0,34481.0,4.13301]
[1610336728300,0.38072,34562.0,34555.0,0.13632608]
[1610336728504,0.38072,34562.0,34525.0,0.08715]
[1610336729101,0.38072,34562.0,34526.0,0.0868]
[1610336730103,0.10172,34562.0,34525.0,0.08715]
[1610336730304,0.09843,34569.0,34561.0,0.13632608]
[1610336730903,1.0,34665.0,34561.0,0.13632608]
[1610336731107,1.0,34665.0,34562.0,0.0865]
[1610336731808,1.0,34665.0,34561.0,0.13632608]
[1610336732004,1.08851,34665.0,34561.0,0.13632608]
[1610336732204,1.08851,34665.0,34659.0,0.13632608]
[1610336732408,1.08851,34665.0,34540.0,0.07915]
[1610336732706,1.08851,34665.0,34541.0,0.0873]
[1610336732906,0.08851,34665.0,34583.0,1.0]
[1610336734307,0.08851,34665.0,34631.0,0.13632608]
[1610336735408,0.08851,34665.0,34632.0,0.0878]
[1610336736210,0.08851,34665.0,34631.0,0.13632608]
[1610336736408,0.08851,34665.0,34664.0,0.13632608]
[1610336736608,0.08851,34665.0,34609.0,1.0]
[1610336736809,0.08851,34665.0,34631.0,1.0]
[1610336737010,0.2913,34720.0,34631.0,1.0]
[1610336737609,0.0382,34747.0,34631.0,1.0]
[1610336738009,1.0,34770.0,34631.0,1.0]
[1610336738411,0.13632608,34746.0,34708.0,0.13632608]
[1610336738609,0.22699608,34746.0,34631.0,1.0]
[1610336738815,0.22699608,34746.0,34664.0,1.0]
[1610336739211,0.09067,34746.0,34664.0,1.0]
[1610336739610,0.09067,34746.0,34665.0,0.0854]
[1610336740013,0.09067,34746.0,34665.0,0.16046]
[1610336740412,0.09067,34746.0,34745.0,0.13632608]
[1610336740613,1.0,34803.0,34745.0,0.13632608]
[1610336740812,0.2798,34871.0,34745.0,1.13632608]
[1610336741014,0.0867,34836.0,34745.0,1.13632608]
[1610336741213,0.2798,34871.0,34745.0,1.13632608]
[1610336741414,0.0851,34838.0,34745.0,1.13632608]
[1610336741814,0.2798,34871.0,34745.0,1.13632608]
[1610336742415,0.2798,34871.0,34745.0,1.0]
[1610336742614,0.2798,34871.0,34745.0,1.0861]
[1610336742815,0.2798,34871.0,34763.0,1.0]
[1610336743015,0.2798,34871.0,34763.0,0.50749]
[1610336743214,1.0,34903.0,34763.0,0.27901]
[1610336743414,1.074e-05,34831.0,34830.0,6.0]
[1610336743614,1.074e-05,34831.0,34830.0,0.09811]
[1610336743821,1.074e-05,34831.0,34762.0,0.0827]
[1610336744019,0.07211074,34831.0,34762.0,0.0827]
[1610336744415,0.07211074,34831.0,34825.0,0.13632608]
[1610336745016,0.07211074,34831.0,34762.0,0.0827]
[1610336746016,0.01571074,34831.0,34762.0,0.0827]
[1610336746216,0.01091074,34831.0,34763.0,0.0853]
[1610336746415,1.074e-05,34831.0,34830.0,0.13632608]
[1610336746616,1.074e-05,34831.0,34762.0,0.0827]
[1610336747417,1.074e-05,34831.0,34763.0,0.0852]
[1610336748317,1.074e-05,34831.0,34830.0,0.13632608]
[1610336748518,1.074e-05,34831.0,34762.0,0.0827]
[1610336748717,0.99681074,34837.0,34762.0,0.0827]
[1610336748917,0.10732,34831.0,34761.0,0.10819]
[1610336749317,0.07502,34831.0,34761.0,0.10819]
[1610336750417,0.13632608,34815.0,34800.0,0.13632608]
[1610336750620,0.24201608,34815.0,34800.0,0.13632608]
[1610336750819,0.10569,34815.0,34800.0,0.13632608]
[1610336751018,0.06339,34815.0,34800.0,0.13632608]
[1610336752018,0.02839,34815.0,34800.0,0.13632608]
[1610336752419,0.13632608,34813.0,34791.0,0.13632608]
[1610336753423,0.13632608,34813.0,34765.0,3.8869]
[1610336754424,0.13632608,34787.0,34778.0,0.13632608]
[1610336754625,0.23254608,34787.0,34765.0,3.8869]
[1610336755028,1.23254608,34787.0,34765.0,3.8869]
[1610336755231,1.23254608,34787.0,34601.0,0.0966408]
[1610336755424,1.0,34786.0,34601.0,0.0966408]
[1610336756023,1.0,34786.0,34610.0,0.0873]
[1610336756224,1.0,34786.0,34611.0,0.0002]
[1610336756423,0.13632608,34687.0,34611.0,0.0002]
[1610336756825,0.21939608,34687.0,34611.0,0.0002]
[1610336757226,0.0871,34686.0,34611.0,0.0002]
[1610336757424,1.0,34612.0,34610.0,0.0002]
[1610336757624,1.0,34612.0,34445.0,0.0873746]
[1610336758025,1.08557,34612.0,34446.0,0.0882]
[1610336758226,1.08557,34612.0,34446.0,0.17898]
[1610336758426,0.13632608,34537.0,34535.0,0.13632608]
[1610336758625,0.11639,34573.0,34536.0,0.0002]
[1610336758827,0.11639,34573.0,34536.0,0.07162]
[1610336759226,0.11639,34573.0,34537.0,0.0002]
[1610336759627,0.0875,34572.0,34536.0,0.07142]
[1610336759828,1.0,34617.0,34537.0,0.0002]
[1610336760025,1.0,34617.0,34536.0,0.07142]
[1610336760225,3.502,34596.0,34537.0,0.0002]
[1610336760425,1.0,34617.0,34595.0,0.13632608]
[1610336760625,1.0,34617.0,34595.0,0.23130608]
[1610336761026,0.7977,34617.0,34595.0,0.23130608]
[1610336761227,1.0,34685.0,34595.0,0.23130608]
[1610336761428,1.0,34680.0,34595.0,0.23130608]
[1610336761627,1.11197,34680.0,34536.0,0.07142]
[1610336761828,0.0857,34679.0,34536.0,0.07142]
[1610336762029,1.11197,34680.0,34536.0,0.07142]
[1610336762229,1.11197,34680.0,34537.0,0.0002]
[1610336762427,1.11197,34680.0,34567.0,0.13632608]
[1610336762628,0.5932,34656.0,34567.0,0.0875]
[1610336762828,0.08023,34656.0,34567.0,0.0875]
[1610336763428,1.0,34612.0,34567.0,0.0875]
[1610336764428,0.07692,34690.0,34611.0,0.13632608]
[1610336764629,0.10285,34714.0,34611.0,0.23057608]
[1610336765432,1.0,34760.0,34611.0,0.23057608]
[1610336765630,1.0,34760.0,34612.0,0.0002]
[1610336766430,0.13632608,34713.0,34612.0,0.0002]
[1610336766829,2.608e-05,34713.0,34612.0,0.0002]
[1610336767232,1.0,34745.0,34612.0,0.0002]
[1610336767432,0.07111,34739.0,34612.0,0.0002]
[1610336768431,0.13632608,34697.0,34687.0,0.13632608]
[1610336769233,0.07111,34739.0,34611.0,0.09425]
[1610336769432,1.0,34740.0,34611.0,0.09425]
[1610336769632,0.0866,34739.0,34612.0,0.0002]
[1610336769831,1.0,34740.0,34612.0,0.0002]
[1610336770034,1.0,34740.0,34612.0,0.08485]
[1610336770231,0.7488,34740.0,34612.0,0.08485]
[1610336770432,0.13632608,34729.0,34613.0,0.0002]
[1610336770631,1.0,34772.0,34613.0,0.0002]
[1610336771331,1.0,34772.0,34614.0,0.0863]
[1610336771531,1.0,34772.0,34632.0,0.0719996]
[1610336771733,1.0,34772.0,34632.0,0.1873396]
[1610336771933,0.49839,34772.0,34656.0,0.0873746]
[1610336772133,0.1653,34772.0,34656.0,0.1779746]
[1610336772333,0.0863,34786.0,34771.0,0.13632608]
[1610336772534,1.0,34816.0,34771.0,0.22475608]
[1610336773132,1.0,34816.0,34772.0,0.0864]
[1610336773332,0.9519,34816.0,34772.0,0.0864]
[1610336773533,0.8938,34816.0,34771.0,0.22475608]
[1610336773732,0.11479,34859.0,34771.0,0.22475608]
[1610336773933,0.11479,34859.0,34772.0,0.0002]
[1610336774334,0.13632608,34851.0,34810.0,0.13632608]
[1610336774734,0.09442,34870.0,34810.0,0.13632608]
[1610336774936,0.09442,34870.0,34810.0,0.22627608]
[1610336775336,0.09442,34870.0,34810.0,0.08995]
[1610336775735,0.2908,34977.0,34810.0,0.08995]
[1610336775937,1.0,34873.0,34811.0,0.0002]
[1610336776338,1.0,34873.0,34872.0,0.13632608]
[1610336776536,1.0,34873.0,34872.0,0.20929608]
[1610336776938,0.58774,34873.0,34810.0,0.08995]
[1610336777137,1.0,34873.0,34872.0,0.08241]
[1610336778038,1.0863,34873.0,34868.0,0.07505]
[1610336778438,0.13632608,34870.0,34869.0,0.0871]
[1610336778639,1.0863,34873.0,34869.0,0.0871]
[1610336778839,1.0863,34873.0,34868.0,0.07505]
[1610336779039,1.0,34873.0,34868.0,0.07505]
[1610336779439,0.09942,34890.0,34868.0,0.07505]
[1610336780039,0.09942,34890.0,34869.0,0.0868]
[1610336780240,0.09942,34890.0,34868.0,0.0886]
[1610336780443,0.13632608,34869.0,34868.0,0.0886]
[1610336780840,1.0,34888.0,34868.0,0.0886]
[1610336781441,1.0,34888.0,34868.0,0.1739]
[1610336782142,1.0,34888.0,34868.0,0.0886]
[1610336782342,0.13632608,34889.0,34882.0,0.13632608]
[1610336782542,1.0,34943.0,34882.0,0.24253608]
[1610336783344,0.04316876,34924.0,34882.0,0.24253608]
[1610336784345,0.13632608,34906.0,34901.0,0.13632608]
[1610336784545,0.04316876,34924.0,34882.0,0.10621]
[1610336784745,0.0855,34923.0,34882.0,0.10621]
[1610336784946,0.09807,34950.0,34882.0,0.10621]
[1610336786147,4.0594,34955.0,34882.0,0.10621]
[1610336786348,0.13632608,34932.0,34921.0,0.13632608]
[1610336786547,0.13632608,34932.0,34882.0,0.10621]
[1610336787449,0.13632608,34932.0,34883.0,0.0847]
[1610336787648,4.0594,34955.0,34883.0,0.15612]
[1610336788051,3.8033,34980.0,34883.0,0.15612]
[1610336788449,1.0,34968.0,34917.0,0.13632608]
[1610336789050,1.0,34968.0,34883.0,0.07142]
[1610336789552,1.0,34968.0,34884.0,0.0865]
[1610336789752,1.0,34968.0,34883.0,0.07142]
[1610336790352,0.13632608,34899.0,34888.0,0.13632608]
[1610336790556,1.0,34946.0,34883.0,0.07142]
[1610336790752,1.0,34946.0,34884.0,0.0864]
[1610336790952,4.3013,34945.0,34883.0,0.07142]
[1610336791153,4.39215,34945.0,34883.0,0.07142]
[1610336791753,4.39215,34945.0,34868.0,0.0886]
[1610336791954,4.39215,34945.0,34838.0,3.3498]
[1610336792354,0.13632608,34839.0,34838.0,3.3498]
[1610336792554,0.09938,34917.0,34838.0,3.3498]
[1610336792754,1.0,34859.0,34838.0,3.42233]
[1610336793855,0.75782,34859.0,34838.0,3.42233]
[1610336794255,1.0,34894.0,34838.0,3.42233]
[1610336794458,0.13632608,34860.0,34838.0,3.55865608]
[1610336794656,1.0,34894.0,34838.0,3.42233]
[1610336795859,3.5733,34882.0,34788.0,4.0697]
[1610336796058,1.0,34839.0,34838.0,0.07406]
[1610336796459,1.13632608,34839.0,34838.0,0.07406]
[1610336797059,0.689,34839.0,34788.0,4.0697]
[1610336797258,0.39889,34839.0,34788.0,4.0697]
[1610336797459,3.5733,34882.0,34790.0,1.0]
[1610336797659,4.0797,34839.0,34838.0,6.0]
[1610336797859,1.0,34890.0,34838.0,6.0]
[1610336798460,5.0,34908.0,34889.0,0.13632608]
[1610336798660,0.02990766,40497.0,34889.0,0.22675608]
[1610336798661,1.0,34968.0,34889.0,0.22675608]
[1610336798860,3.33584053,34974.0,34889.0,0.22675608]
[1610336799059,1.0,34982.0,34889.0,0.22675608]
[1610336799460,1.0,34982.0,34890.0,0.0866]
[1610336799864,1.0,34982.0,34889.0,0.22675608]
[1610336800061,1.10976,34982.0,34889.0,0.22675608]
[1610336800262,3.6445,34977.0,34889.0,0.22675608]
[1610336800462,3.6445,34977.0,34934.0,0.13632608]
[1610336800662,3.6445,34977.0,34934.0,0.09105]
[1610336800863,1.0,34942.0,34889.0,0.09043]
[1610336801462,1.0,34934.0,34889.0,0.09043]
[1610336801865,1.0,34934.0,34890.0,0.087]
[1610336802466,0.915,34934.0,34890.0,0.087]
[1610336802866,1.0,34966.0,34890.0,0.087]
[1610336803066,0.796,34966.0,34890.0,0.087]
[1610336803267,0.10542,34967.0,34890.0,0.087]
[1610336803468,0.10976,34982.0,34890.0,0.087]
[1610336803666,0.10976,34982.0,34889.0,0.09043]
[1610336803866,0.10976,34982.0,34886.0,4.6109]
[1610336804467,0.13632608,34943.0,34940.0,0.13632608]
[1610336804667,0.13632608,34943.0,34887.0,0.0002]
[1610336804867,0.13632608,34943.0,34886.0,4.6109]
[1610336805270,0.11992608,34943.0,34886.0,4.6109]
[1610336805670,1.0,34937.0,34886.0,4.6109]
[1610336806471,0.13632608,34899.0,34886.0,4.6109]
[1610336806870,1.0,34937.0,34886.0,4.6109]
[1610336807069,1.0,34937.0,34886.0,4.68472]
[1610336807672,1.0,34900.0,34886.0,4.68472]
[1610336807870,1.0,34900.0,34886.0,0.07382]
[1610336808070,1.0,34897.0,34886.0,0.07382]
[1610336808470,0.13632608,34887.0,34886.0,0.07382]
[1610336809070,0.13632608,34887.0,34877.0,0.07182]
[1610336809470,1.0,34908.0,34877.0,0.07182]
[1610336810471,0.13632608,34878.0,34877.0,0.07182]
[1610336811177,1.0,34908.0,34877.0,0.07182]
[1610336812377,1.0,34908.0,34877.0,0.07048]
[1610336812576,1.0,34908.0,34907.0,0.13632608]
[1610336812777,0.65,34908.0,34907.0,0.23738608]
[1610336812976,1.0,34936.0,34907.0,1.23738608]
[1610336813178,4.5328,34975.0,34907.0,0.23738608]
[1610336814580,4.5328,34975.0,34974.0,0.13632608]
[1610336815581,4.5328,34975.0,34972.0,0.08478]
[1610336816584,4.5328,34975.0,34974.0,0.13632608]
[1610336816784,4.5328,34975.0,34972.0,0.08478]
[1610336817887,0.13632608,34982.0,34972.0,0.08478]
[1610336818486,0.07525,34992.0,34981.0,0.13632608]
[1610336818487,0.21157608,34992.0,34981.0,0.13632608]
[1610336818887,0.17657608,34992.0,34981.0,0.13632608]
[1610336819486,0.13632608,34992.0,34981.0,0.13632608]
[1610336819685,0.07806,35006.0,34981.0,0.23583608]
[1610336820085,0.07806,35006.0,34981.0,0.09951]
[1610336820288,0.18356,35015.0,34981.0,0.09951]
[1610336820486,0.18356,35015.0,34994.0,0.13632608]
[1610336820687,0.18356,35015.0,34981.0,0.09951]
[1610336820887,0.26248,35015.0,34981.0,0.09951]
[1610336821690,0.07892,35015.0,34981.0,0.09951]
[1610336822588,0.07892,35015.0,34986.0,0.13632608]
[1610336823189,0.07892,35015.0,34981.0,0.09951]
[1610336824691,0.07892,35015.0,34991.0,0.13632608]
[1610336825293,1.0,34992.0,34991.0,0.13632608]
[1610336825493,0.2648,34992.0,34991.0,0.13632608]
[1610336825692,5.0,34999.0,34991.0,0.13632608]
[1610336825893,0.07892,35015.0,34991.0,0.13632608]
[1610336826092,1.0,35021.0,34991.0,1.13632608]
[1610336826595,1.0,35021.0,35015.0,0.13632608]
[1610336826792,1.0,35021.0,35004.0,0.09739]
[1610336826993,0.83942677,35021.0,35004.0,0.09739]
[1610336827394,0.09426,35026.0,35015.0,1.0]
[1610336828593,0.09426,35026.0,35025.0,0.13632608]
[1610336828794,1.0,35047.0,35025.0,0.13632608]
[1610336829394,0.13632608,35053.0,35025.0,0.13632608]
[1610336830596,0.13632608,35039.0,35033.0,0.13632608]
[1610336830796,0.21079608,35039.0,35033.0,0.13632608]
[1610336830995,0.07447,35039.0,35033.0,0.13632608]
[1610336832599,0.07447,35039.0,35012.0,0.07818]
[1610336833802,0.07447,35039.0,35004.0,0.09739]
[1610336834202,0.07447,35039.0,34989.0,0.08995]
[1610336834400,0.07447,35039.0,34947.0,1.0]
[1610336834601,0.07447,35039.0,35038.0,0.13632608]
[1610336834802,0.07447,35039.0,34947.0,1.0]
[1610336835201,0.07447,35039.0,34948.0,0.0002]
[1610336835402,0.07447,35039.0,35027.0,1.0]
[1610336835802,1.0,35044.0,35027.0,1.0]
[1610336836202,0.95,35044.0,35027.0,1.0]
[1610336836403,0.13632608,35065.0,35020.0,0.10974]
[1610336836602,0.13632608,35055.0,35044.0,0.13632608]
[1610336836805,0.07288,35055.0,35044.0,0.13632608]
[1610336837504,0.07288,35055.0,35045.0,0.0847]
[1610336837703,0.07288,35055.0,35044.0,0.13632608]
[1610336838706,0.07288,35055.0,35020.0,0.10974]
[1610336840406,0.07288,35055.0,35018.0,3.9586]
[1610336840607,0.13632608,35034.0,35026.0,0.13632608]
[1610336841006,0.13632608,35034.0,35018.0,3.9586]
[1610336841406,0.13632608,35034.0,34942.0,1.0]
[1610336841606,0.13632608,35034.0,34942.0,0.91018]
[1610336841806,0.07288,35055.0,34949.0,0.0002]
[1610336842008,1.0,35009.0,34949.0,0.0002]
[1610336842207,1.0,35000.0,34943.0,0.0002]
[1610336842606,1.0,35000.0,34933.0,0.0002]
[1610336843407,1.0,35000.0,34860.0,1.0]
[1610336843808,1.0,35000.0,34933.0,0.0002]
[1610336844009,1.0,34999.0,34933.0,0.10535]
[1610336844209,1.07173,34999.0,34933.0,0.10535]
[1610336844809,0.13632608,34950.0,34933.0,0.10535]
[1610336845209,0.13632608,34950.0,34859.0,1.0]
[1610336845611,1.13632608,34950.0,34810.0,1.0]
[1610336846410,1.13632608,34950.0,34884.0,3.3209]
[1610336846615,1.13632608,34950.0,34884.0,3.406]
[1610336846814,1.13632608,34950.0,34910.0,0.13632608]
[1610336846815,0.13632608,34936.0,34910.0,0.13632608]
[1610336847018,0.20940608,34936.0,34910.0,0.13632608]
[1610336847615,6.0,34911.0,34910.0,0.13632608]
[1610336848015,5.9832,34911.0,34910.0,0.13632608]
[1610336848417,0.07308,34936.0,34910.0,0.13632608]
[1610336848817,0.07374,34943.0,34935.0,0.13632608]
[1610336849218,0.07374,34943.0,34923.0,0.10339]
[1610336849417,0.15896608,34948.0,34900.0,0.09412]
[1610336849616,0.23936608,34952.0,34900.0,0.09412]
[1610336849817,0.23936608,34952.0,34901.0,0.0002]
[1610336850216,0.23936608,34952.0,34900.0,0.09412]
[1610336850417,1.0,34948.0,34901.0,0.0002]
[1610336850816,1.0,34948.0,34922.0,0.13632608]
[1610336852418,0.23936608,34952.0,34922.0,0.13632608]
[1610336853016,3.00265087,34973.0,34922.0,0.13632608]
[1610336853316,1.0,34982.0,34923.0,0.0002]
[1610336853717,1.0,34982.0,34922.0,0.13632608]
[1610336853917,1.11687,34982.0,34922.0,0.13632608]
[1610336854118,1.11687,34982.0,34923.0,0.0002]
[1610336854317,0.11687,34982.0,34923.0,0.09664]
[1610336854719,0.13632608,34965.0,34956.0,0.13632608]
[1610336855119,0.10042,34974.0,34956.0,0.13632608]
[1610336855319,0.10042,34974.0,34956.0,0.07839]
[1610336855520,0.10042,34974.0,34956.0,0.09887]
[1610336856120,0.11687,34982.0,34956.0,0.09887]
[1610336856320,1.0,34957.0,34956.0,0.09887]
[1610336856720,1.0,34957.0,34956.0,0.23519608]
[1610336857119,5.0,34974.0,34956.0,0.23519608]
[1610336857522,3.02344723,35010.0,34956.0,0.23519608]
[1610336857719,3.02344723,35010.0,34957.0,0.0002]
[1610336858119,3.02344723,35010.0,34956.0,0.23519608]
[1610336858621,3.02820545,35007.0,34956.0,0.23519608]
[1610336858820,3.02820545,35007.0,35006.0,0.13632608]
[1610336859020,3.02794514,35012.0,35006.0,0.22494608]
[1610336859222,3.02794514,35012.0,35006.0,0.08862]
[1610336859622,3.02818254,35016.0,35005.0,0.08321]
[1610336859822,3.02818254,35016.0,35000.0,0.10701]
[1610336860025,3.02818254,35016.0,35001.0,0.0863]
[1610336860321,3.02896073,35009.0,35001.0,0.0863]
[1610336860721,3.02879959,35013.0,35000.0,0.10701]
[1610336861724,3.02879959,35013.0,35001.0,0.0853]
[1610336861926,3.02876886,35014.0,35000.0,0.0853]
[1610336862723,3.02986751,35015.0,34993.0,0.11336]
[1610336863725,3.36760161,35024.0,34993.0,0.11336]
[1610336864827,0.13632608,35006.0,35005.0,0.13632608]
[1610336865029,0.13632608,35006.0,35005.0,0.0863]
[1610336866127,0.13632608,35006.0,34993.0,0.11336]
[1610336866528,6.13632608,35006.0,34993.0,0.11336]
[1610336866729,0.13632608,34994.0,34993.0,0.11336]
[1610336867429,0.13632608,34994.0,34985.0,0.07141]
[1610336867632,6.13632608,34994.0,34985.0,0.07141]
[1610336868130,6.13632608,34994.0,34967.0,3.5862]
[1610336868531,6.13632608,34994.0,34968.0,0.0846]
[1610336868730,6.0,34994.0,34983.0,0.13632608]
[1610336868932,5.6592,34994.0,34967.0,3.68597]
[1610336869133,3.37277864,35013.0,34967.0,3.68597]
[1610336869531,1.0,35015.0,34967.0,3.68597]
[1610336869532,3.38504266,34997.0,34967.0,3.68597]
[1610336869931,3.38504266,34997.0,34968.0,0.0847]
[1610336870733,0.13632608,34969.0,34968.0,0.0847]
[1610336870932,0.13632608,34969.0,34967.0,3.68597]
[1610336871333,0.13632608,34969.0,34967.0,2.68597]
[1610336871533,0.13632608,34969.0,34967.0,0.09977]
[1610336871733,0.13632608,34969.0,34924.0,4.0457]
[1610336871934,0.13632608,34969.0,34925.0,0.0849]
[1610336872135,0.13632608,34969.0,34925.0,0.0851]
[1610336872339,0.13632608,34969.0,34926.0,0.0002]
[1610336872536,0.13632608,34969.0,34925.0,0.0849]
[1610336872738,0.13632608,34931.0,34927.0,0.13632608]
[1610336874138,0.13632608,34931.0,34927.0,0.22262608]
[1610336874338,0.13632608,34931.0,34924.0,4.0457]
[1610336874539,0.13632608,34931.0,34924.0,1.1682]
[1610336874741,0.13632608,34931.0,34822.0,1.0]
[1610336874938,0.13632608,34925.0,34839.0,0.2915]
[1610336875138,0.24136608,34925.0,34839.0,0.2915]
[1610336875341,4.1248,34909.0,34840.0,0.0002]
[1610336875538,4.22025,34909.0,34840.0,0.0002]
[1610336875738,1.0,34899.0,34840.0,0.0002]
[1610336876139,3.07680128,34897.0,34840.0,0.0002]
[1610336877039,2.79970128,34897.0,34840.0,0.0002]
[1610336877241,1.0,34899.0,34840.0,0.0002]
[1610336877439,0.979,34899.0,34898.0,0.13632608]
[1610336877642,4.1248,34909.0,34898.0,0.21406608]
[1610336878040,3.41295378,34928.0,34898.0,0.07774]
[1610336878439,3.41295378,34928.0,34899.0,0.0002]
[1610336878840,3.41295378,34928.0,34900.0,0.0852]
[1610336879041,3.41104447,34933.0,34900.0,0.0852]
[1610336879241,3.41104447,34933.0,34901.0,0.0002]
[1610336879444,3.41104447,34933.0,34932.0,0.13632608]
[1610336879641,3.4095845,34938.0,34932.0,0.13632608]
[1610336879841,3.3901845,34938.0,34932.0,0.13632608]
[1610336880042,4.3698845,34938.0,34932.0,0.13632608]
[1610336880444,1.0,34938.0,34932.0,0.13632608]
[1610336880642,0.8583,34938.0,34932.0,0.13632608]
[1610336881042,3.57968174,34955.0,34932.0,0.13632608]
[1610336881443,3.57968174,34955.0,34948.0,0.13632608]
[1610336881644,3.57968174,34955.0,34948.0,0.22373608]
[1610336882245,3.57968174,34955.0,34948.0,0.08741]
[1610336883049,3.57968174,34955.0,34931.0,0.11466]
[1610336883847,0.13632608,34932.0,34931.0,0.11466]
[1610336884448,0.13632608,34932.0,34841.0,1.0]
[1610336884648,0.13632608,34932.0,34897.0,3.6322]
[1610336884848,0.13632608,34932.0,34841.0,1.0]
[1610336885050,0.13632608,34932.0,34805.0,1.0]
[1610336885249,0.13632608,34932.0,34855.0,0.0002]
[1610336885449,0.22322608,34932.0,34855.0,0.08179]
[1610336885652,0.22322608,34932.0,34856.0,0.0002]
[1610336885849,0.13632608,34894.0,34891.0,0.13632608]
[1610336886450,0.13632608,34894.0,34892.0,0.0002]
[1610336886650,0.11692608,34894.0,34892.0,0.10661]
[1610336887050,0.11692608,34894.0,34892.0,0.10641]
[1610336888351,0.11692608,34894.0,34892.0,0.08696]
[1610336888950,0.11692608,34894.0,34855.0,0.08159]
[1610336889351,0.11692608,34894.0,34856.0,0.0002]
[1610336889955,0.13632608,34857.0,34855.0,0.08159]
[1610336890551,0.13632608,34857.0,34840.0,0.10915]
[1610336892253,0.087,34856.0,34749.0,1.0]
[1610336893053,0.087,34856.0,34757.0,0.0857]
[1610336893253,0.087,34856.0,34728.0,1.0]
[1610336893855,0.13632608,34839.0,34795.0,0.13632608]
[1610336894054,0.13632608,34839.0,34728.0,1.0]
[1610336894455,1.13632608,34839.0,34729.0,0.0858]
[1610336894656,1.13632608,34839.0,34729.0,0.08804]
[1610336894855,1.13632608,34839.0,34730.0,0.0002]
[1610336895858,1.0,34839.0,34730.0,0.0002]
[1610336896059,3.035987,34836.0,34730.0,0.0002]
[1610336896258,3.123097,34836.0,34730.0,0.0002]
[1610336896458,1.0,34755.0,34738.0,1.0]
[1610336896658,5.0,34773.0,34738.0,1.0]
[1610336896858,5.0,34773.0,34739.0,0.0002]
[1610336897058,1.0,34810.0,34739.0,0.0002]
[1610336897659,1.0,34810.0,34740.0,0.0856]
[1610336897860,0.68373,34810.0,34809.0,0.13632608]
[1610336898060,3.03020249,34833.0,34809.0,0.23005608]
[1610336898260,3.02204612,34842.0,34809.0,0.09373]
[1610336898459,3.01753501,34856.0,34809.0,0.09373]
[1610336898661,2.95173501,34856.0,34809.0,0.09373]
[1610336898861,3.35501604,34871.0,34810.0,0.0002]
[1610336899060,3.35501604,34871.0,34809.0,0.09373]
[1610336899262,3.35233325,34878.0,34810.0,0.0002]
[1610336899462,3.34833791,34894.0,34810.0,0.0002]
[1610336899866,3.34736119,34901.0,34893.0,0.13632608]
[1610336900061,3.34736119,34901.0,34893.0,0.21138608]
[1610336900261,3.3470176,34907.0,34893.0,0.21138608]
[1610336900661,3.3470176,34907.0,34893.0,0.10662]
[1610336900861,3.34827829,34914.0,34893.0,0.10662]
[1610336901862,0.13632608,34918.0,34913.0,0.13632608]
[1610336902063,3.34907713,34924.0,34913.0,0.10317]
[1610336902662,5.0,34927.0,34913.0,0.10317]
[1610336903865,5.13632608,34927.0,34915.0,0.13632608]
[1610336904064,5.0,34927.0,34915.0,0.13632608]
[1610336904364,3.34821217,34940.0,34915.0,0.13632608]
[1610336905165,3.34793041,34946.0,34915.0,0.13632608]
[1610336905465,3.34793041,34946.0,34913.0,0.10317]
[1610336905865,0.13632608,34924.0,34915.0,0.13632608]
[1610336906265,3.34793041,34946.0,34915.0,0.13632608]
[1610336906468,1.0,34943.0,34923.0,1.0]
[1610336907967,0.13632608,34924.0,34923.0,1.0]
[1610336908368,3.34729419,34954.0,34913.0,0.10317]
[1610336908568,1.0,34940.0,34922.0,1.0]
[1610336909968,1.0,34940.0,34936.0,0.13632608]
[1610336910169,1.0,34940.0,34936.0,0.20936608]
[1610336910368,1.0,34937.0,34936.0,0.07304]
[1610336911969,1.13632608,34937.0,34936.0,0.07304]
[1610336912370,0.13632608,34937.0,34936.0,0.07304]
[1610336912571,0.13632608,34937.0,34913.0,0.0707]
[1610336913372,0.16632608,34937.0,34913.0,0.0707]
[1610336913772,0.16632608,34937.0,34893.0,0.10662]
[1610336913973,0.13632608,34917.0,34908.0,0.13632608]
[1610336914274,0.13632608,34917.0,34838.0,0.2961]